Cogmind - Beta 10.2 @@@ ROGUE MODE // 2020.12.09 @ 15:40:21 Player: Demise Result: Destroyed by DAS Turret with DAS Cannon Performance ------------- Evolutions (1) 500 Regions Visited (5) 1000 Robots Destroyed (73) 365 Value Destroyed (1522) 1522 Prototype IDs (43) 860 Alien Tech Used (0) 0 Bonus (300) 300 TOTAL SCORE: 4547 Bonus ------- Aligned with FarCom 300 Cogmind --------- Core Integrity 0/400 Matter 250/300 Energy 296/310 System Corruption 5% Temperature Cool (2) Movement Walking (150) Ox1 Location -9/Exiles Parts ------- > --- POWER (1) -------- Reinforced Fission Core > --- PROPULSION (2) --- Advanced Myomer Leg Advanced Myomer Leg > --- UTILITY (4) ------ High-capacity Storage Unit High-capacity Storage Unit Salvage Targeting Computer Light Armor Plating > --- WEAPON (2) ------- AWS/Gauss > --- INVENTORY (20) --- High-capacity Matter Pod (200) Advanced Weapon Cycler Light Assault Rifle 8R-AWN's Boregun 8R-AWN's Boregun Mini Grenade Launcher Plasma Cutter Peak State ------------ > --- POWER ------------ Cooled Ion Engine > --- PROPULSION ------- Advanced Myomer Leg Advanced Myomer Leg > --- UTILITY ---------- High-capacity Storage Unit High-capacity Storage Unit Salvage Targeting Computer Light Armor Plating > --- WEAPON ----------- AWS/Gauss > --- INVENTORY -------- Reinforced Fission Core Experimental Heat Sink High-capacity Matter Pod Gravity Neutralizing Apparatus Experimental Targeting Computer Advanced Weapon Cycler Light Armor Plating 8R-AWN's Armor/EX AS-neutralizer No. 17b Light Assault Rifle 8R-AWN's Boregun 8R-AWN's Boregun Mini Grenade Launcher Plasma Cutter [Rating: 48] Favorites ----------- Power Cooled Ion Engine Engine Cooled Ion Engine Power Core Light Nuclear Core Propulsion Light Treads Treads Light Treads Leg Advanced Myomer Leg Utility High-capacity Storage Unit Device Improved Terrain Scanner Storage High-capacity Storage Unit Processor Salvage Targeting Computer Protection Light Armor Plating Weapon Light Assault Rifle Energy Gun EM Pulse Gun Energy Cannon Light EM Pulse Cannon Ballistic Gun Light Assault Rifle Launcher Grenade Launcher Special Melee Weapon Datajack Build | -11 -10 -10 -9 -9 -9 ------- Run | Scr Mat Min Mat Min Exi Slots Evolved 2 | . . . 2 . . Power . | . . . . . . Propulsion . | . . . . . . Utility 2 | . . . 2 . . Weapon . | . . . . . . Parts Attached 114 | 1 19 25 29 9 31 Power 18 | . 6 7 2 1 2 Engine 15 | . 6 5 2 1 1 Core 3 | . . 2 . . 1 Reactor . | . . . . . . Propulsion 24 | . 4 8 7 . 5 Treads 22 | . 4 8 7 . 3 Leg 2 | . . . . . 2 Wheel . | . . . . . . Hover . | . . . . . . Flight . | . . . . . . Utility 27 | 1 4 . 10 . 12 Device 1 | 1 . . . . . Storage 14 | . 4 . 4 . 6 Processor 1 | . . . . . 1 Hackware . | . . . . . . Protection 11 | . . . 6 . 5 Artifact . | . . . . . . Weapon 45 | . 5 10 10 8 12 Energy Gun 4 | . 3 1 . . . Energy Cannon 6 | . 2 4 . . . Ballistic Gun 26 | . . 3 8 6 9 Ballistic Cannon . | . . . . . . Launcher 8 | . . 2 2 2 2 Special Weapon . | . . . . . . Impact Weapon . | . . . . . . Slashing Weapon . | . . . . . . Piercing Weapon . | . . . . . . Special Melee Weapon 1 | . . . . . 1 Unidentified Prototypes . | . . . . . . Parts Lost 22 | . . 5 1 2 14 Power 4 | . . 1 . 1 2 Propulsion 6 | . . 2 . . 4 Utility 3 | . . . . . 3 Weapon 9 | . . 2 1 1 5 Highest Loss Streak 6 | . . 4 1 2 6 Average Slot Usage (%) 93 | . 99 94 99 96 79 Engine 11 | . 14 9 10 11 10 Treads 22 | . 27 25 21 22 19 Storage 33 | . 25 28 36 44 33 Protection 3 | . . . 7 . 3 Energy Gun 2 | . 14 3 . . . Energy Cannon 3 | . 13 10 . . . Ballistic Gun 12 | . . 8 21 18 4 Naked Turns . | . . . . . . Heaviest Build 126 | 10 75 78 126 126 124 Greatest Support 60 | 20 40 40 40 40 60 Greatest Overweight (x) 21 | . 1 21 3 3 18 Average Overweight (x) 1 | . . 1 2 3 1 Largest Inventory Capacity 34 | 6 20 20 34 34 34 Average Capacity 25 | 6 15 20 28 34 26 Most Carried 34 | 6 20 20 34 34 34 Average Carried 24 | 6 14 19 27 33 23 Final Capacity 34 | 6 20 20 34 34 20 Final Carried 34 | 6 20 20 34 34 7 Class Distribution -------------------- 84% | Hauler-Mutant 11% | Mutant Dominant Class ---------------- Mutant | -10/Materials Hauler-Mutant | -10/Mines Hauler-Mutant | -9/Materials Hauler-Mutant | -9/Mines Hauler-Mutant | -9/Exiles Resources | -11 -10 -10 -9 -9 -9 ----------- Run | Scr Mat Min Mat Min Exi Matter Collected 2115 | 210 190 315 571 302 527 Remotely . | . . . . . . Salvage Created 2555 | 78 581 255 1167 354 120 Parts 172 | 3 35 15 74 34 11 Haulers Intercepted 8 | . 2 . 6 . . Recyclers Shooed 3 | . . . 3 . . Parts Field Recycled . | . . . . . . Retrieved Matter . | . . . . . . Parts Self-Destructed . | . . . . . . Prevented . | . . . . . . Kills | -11 -10 -10 -9 -9 -9 ------- Run | Scr Mat Min Mat Min Exi Combat Hostiles Destroyed 69 | . 10 24 16 14 5 Guns 34 | . 5 . 16 11 2 Cannons 6 | . 2 4 . . . AOE 28 | . 2 20 . 3 3 Classes Destroyed 12 | 2 6 2 1 1 . Worker 3 | . 3 . . . . Tunneler 4 | 1 . . . 3 . Hauler 8 | . 2 . 6 . . Recycler 3 | 1 . . 2 . . Operator 2 | . 1 . 1 . . Watcher 6 | . 2 . 4 . . Swarmer 16 | . 3 3 3 7 . Grunt 24 | . 7 2 9 6 . Duelist 1 | . . . . 1 . Sentry 4 | . . . 4 . . Demolisher 1 | . . 1 . . . Assembled 22 | . . 18 . . 4 Best Kill Streak 18 | 2 4 18 4 7 3 Combat Bots Only 18 | . 3 18 3 6 3 Max Kills in Single Turn 6 | 1 2 5 1 6 1 Gunslinging . | . . . . . . Exploded 5 | . 2 5 . 2 1 Melee . | . . . . . . Uniques/NPCs Destroyed 1 | . . . . . 1 8R-AWN (-9/Exiles) Combat | -11 -10 -10 -9 -9 -9 -------- Run | Scr Mat Min Mat Min Exi Damage Taken 4805 | . 260 1004 652 608 2281 Core 655 | . 18 187 55 68 327 Absorbed by Shields 213 | . . . . . 213 Core Remaining (%) 59 | 100 . 18 . . . Volleys Fired 264 | 5 37 22 98 25 77 Largest 2 | 2 2 2 2 2 2 Hottest 96 | 80 96 96 46 53 43 Shots Fired 528 | 10 70 40 194 50 164 Gun 461 | 10 41 14 192 45 159 Cannon 47 | . 29 18 . . . Launcher 20 | . . 8 2 5 5 Special . | . . . . . . Kinetic 404 | . . 8 192 45 159 Thermal 14 | 10 4 . . . . Explosive 20 | . . 8 2 5 5 Electromagnetic 90 | . 66 24 . . . Robot Hit Streak 25 | 6 8 13 25 13 24 Robot Miss Streak 5 | 3 3 2 5 3 2 Penetration Max . | . . . . . . Secondary Targets 3 | . . . . 3 . Max Gunslinging Chain 1 | . . . . 1 . Autonomous 17 | . . . . . 17 Shots Hit Robots 388 | 6 44 31 130 31 146 Core Hits 199 | 3 23 51 62 25 35 Critical Hits 2 | . . . . . 2 Critical Kills . | . . . . . . Critical Parts Destroyed 1 | . . . . . 1 Melee Attacks 4 | . . . . . 4 Impact . | . . . . . . Slashing . | . . . . . . Piercing . | . . . . . . Sneak Attacks 4 | . . . . . 4 Combat Hostiles . | . . . . . . Follow-up Attacks . | . . . . . . Damage Inflicted 6491 | 80 1071 1641 1248 858 1593 Guns 3774 | 80 426 117 1248 468 1435 Cannons 732 | . 422 310 . . . Explosions 1985 | . 223 1214 . 390 158 Melee . | . . . . . . Ramming . | . . . . . . Kinetic 3195 | . . 44 1248 468 1435 Thermal 396 | 80 245 71 . . . Explosive 1691 | . . 1143 . 390 158 Electromagnetic 1209 | . 826 383 . . . Impact . | . . . . . . Slashing . | . . . . . . Piercing . | . . . . . . Highest Corruption 5 | . . . . 5 5 Average Corruption 5 | . . . . 5 5 Corruption Purged . | . . . . . . Effects 85 | . . . . 19 66 Message Errors 19 | . . . . 3 16 Matter Fused 20 | . . . . 5 15 Heat Flow Errors 8 | . . . . 2 6 Energy Discharges 7 | . . . . . 7 Data Loss (minor) 16 | . . . . 6 10 Data Loss (major) 5 | . . . . 1 4 Misfires 2 | . . . . 2 . Targeting Errors 8 | . . . . . 8 Overload Shots . | . . . . . . Overflow Damage 36 | . . 36 . . . Projectiles . | . . . . . . Explosions 36 | . . 36 . . . Melee . | . . . . . . Knockbacks . | . . . . . . Impact . | . . . . . . Kinetic . | . . . . . . Secondary . | . . . . . . Self-Inflicted Damage 119 | . . 119 . . . Shots 4 | . . 4 . . . Rammed . | . . . . . . Targets Rammed . | . . . . . . Kicked . | . . . . . . Crushed . | . . . . . . Highest Temperature 293 | 90 221 255 17 275 293 Average Temperature 64 | 47 66 105 4 113 124 Received Heat Transfer 613 | . 111 139 261 102 . Effects 3 | . 1 1 . . 1 Energy Bleed 2 | . . 1 . . 1 Interference 1 | . 1 . . . . Siege Activations . | . . . . . . Robots Corrupted 1 | . 1 . . . . Combat Hostiles 1 | . 1 . . . . Parts Fried 6 | . 6 . . . . Impact Corruptions . | . . . . . . Robots Melted . | . . . . . . Combat Hostiles . | . . . . . . Parts Melted 1 | . 1 . . . . Heat Transferred 625 | 175 350 100 . . . Parts Sabotaged . | . . . . . . Parts Stolen . | . . . . . . Parts Stripped . | . . . . . . Power Chain Reactions 4 | . 3 1 . . . Missiles Intercepted . | . . . . . . Alert | -11 -10 -10 -9 -9 -9 ------- Run | Scr Mat Min Mat Min Exi Peak Influence 307 | 10 171 184 307 200 . Initial 49 | . 6 49 . 34 . Average 98 | 7 86 40 143 73 . Maximum Alert Level 1 | . . . 1 1 . Low Security (%) 86 | 100 100 100 70 93 . Level 1 13 | . . . 29 6 . Level 2 . | . . . . . . Level 3 . | . . . . . . Level 4 . | . . . . . . Level 5 . | . . . . . . High Security . | . . . . . . Max Security . | . . . . . . Squads Dispatched 4 | . 1 . 3 . . Investigation 3 | . 1 . 2 . . Extermination . | . . . . . . Reinforcement 1 | . . . 1 . . Assault . | . . . . . . Garrison . | . . . . . . Intercept . | . . . . . . Construction Impeded . | . . . . . . Haulers Reinforced . | . . . . . . Stealth | -11 -10 -10 -9 -9 -9 --------- Run | Scr Mat Min Mat Min Exi Distress Signals 6 | . 1 . 5 . . Communications Jammed . | . . . . . . Distress Signals . | . . . . . . Times Spotted 124 | . 17 29 37 16 25 Peak Tracking Total 20 | . 5 20 4 4 10 Tactical Retreats 13 | . 1 2 3 2 5 Traps | -11 -10 -10 -9 -9 -9 ------- Run | Scr Mat Min Mat Min Exi Traps Triggered 6 | . 3 . . . 3 Indirectly . | . . . . . . Trap Hack Attempts . | . . . . . . Triggered . | . . . . . . Disarmed . | . . . . . . Reprogrammed . | . . . . . . Reused . | . . . . . . Traps Extracted . | . . . . . . Installed 3 | . . . . . 3 Triggered . | . . . . . . Exploded 3 | . . . . . 3 Machines | -11 -10 -10 -9 -9 -9 ---------- Run | Scr Mat Min Mat Min Exi Machines Disabled 9 | . 1 1 . . 7 Max in Single Turn 3 | . 1 1 . . 3 Machines Sabotaged . | . . . . . . Garrisons Compromised . | . . . . . . Overloaded Fab Kills . | . . . . . . Fab Network Shutdowns . | . . . . . . Hacking | -11 -10 -10 -9 -9 -9 --------- Run | Scr Mat Min Mat Min Exi Machines Accessed 27 | . 10 . 15 . 2 Terminals 18 | . 8 . 10 . . Fabricators . | . . . . . . Repair Stations 3 | . 1 . 2 . . Recycling Units 3 | . 1 . 2 . . Scanalyzers 1 | . . . 1 . . Garrison Access . | . . . . . . Total Hacks 108 | . 39 . 45 . 24 Successful 82 | . 27 . 31 . 24 Failed 25 | . 11 . 14 . . Catastrophic 3 | . 1 . 2 . . Database Lockouts 1 | . 1 . . . . Manual 50 | . 21 . 28 . 1 Terminals 64 | . 35 . 29 . . Fabricators . | . . . . . . Repair Stations 7 | . 2 . 5 . . Recycling Units 5 | . 2 . 3 . . Scanalyzers 8 | . . . 8 . . Garrison Access . | . . . . . . Terminal Hacks 49 | . 17 . 8 . 24 Record 23 | . . . . . 23 Part Schematic 1 | . 1 . . . . Robot Analysis 3 | . 2 . 1 . . Prototype ID Bank 6 | . 5 . 1 . . Branch Access Points 2 | . 1 . 1 . . Terminal Index 1 | . 1 . . . . Unreport Threat 1 | . . . 1 . . Locate Traps 4 | . 2 . 2 . . Dispatch Records 1 | . 1 . . . . Hauler Manifests 2 | . 1 . 1 . . Zone Layout 4 | . 3 . 1 . . EX-Prototype ID Bank 1 | . . . . . 1 Fabricator Hacks . | . . . . . . Repair Station Hacks 6 | . 2 . 4 . . Scan Component 3 | . 1 . 2 . . Repair 3 | . 1 . 2 . . Recycling Unit Hacks 3 | . 2 . 1 . . Report Inventory 2 | . 1 . 1 . . Retrieve Components 1 | . 1 . . . . Scanalyzer 8 | . . . 8 . . Insert Component 3 | . . . 3 . . Analyze 5 | . . . 5 . . Garrison Access Hacks . | . . . . . . Unauthorized Hacks 16 | . 6 . 10 . . Terminals 14 | . 6 . 8 . . Track 3 | . 1 . 2 . . Assimilate 1 | . 1 . . . . Botnet 8 | . 3 . 5 . . Operators 2 | . 1 . 1 . . Fabricators . | . . . . . . Repair Stations . | . . . . . . Recycling Units 2 | . . . 2 . . Mask 1 | . . . 1 . . Tunnel 1 | . . . 1 . . Scanalyzers . | . . . . . . Garrison Access . | . . . . . . Data Cores Recovered 1 | . 1 . . . . Used . | . . . . . . Hacking Detections 19 | . 8 . 11 . . Full Trace Events 2 | . 1 . 1 . . Feedback Events . | . . . . . . Feedback Blocked . | . . . . . . Robot Schematics Acquired . | . . . . . . Robots Built . | . . . . . . Matter . | . . . . . . Time . | . . . . . . Total Robot Build Rating . | . . . . . . Part Schematics Acquired 4 | . 1 . 3 . . Parts Built . | . . . . . . Matter . | . . . . . . Time . | . . . . . . Total Part Build Rating . | . . . . . . Parts Repaired 3 | . 1 . 2 . . Time 68 | . 26 . 42 . . Parts Recycled . | . . . . . . Recycled Matter . | . . . . . . Retrieved Matter . | . . . . . . Retrieved Components 3 | . 3 . . . . Parts Scanalyzed 3 | . . . 3 . . Part Schematics Acquired 3 | . . . 3 . . Parts Damaged . | . . . . . . Bothacking | -11 -10 -10 -9 -9 -9 ------------ Run | Scr Mat Min Mat Min Exi Used RIF Installer . | . . . . . . Robots Hacked 4 | . . . . . 4 Non-combat 3 | . . . . . 3 Combat 1 | . . . . . 1 Robot Hacks Applied 4 | . . . . . 4 parse_system 4 | . . . . . 4 Relay Couplers Released . | . . . . . . Robots Rewired . | . . . . . . Allies Hacked . | . . . . . . Hacks Repelled . | . . . . . . Allies | -11 -10 -10 -9 -9 -9 -------- Run | Scr Mat Min Mat Min Exi Total Allies . | . . . . . . Largest Group . | . . . . . . Highest-Rated Group . | . . . . . . Highest-Rated Ally . | . . . . . . Total Orders . | . . . . . . Ally Attacks . | . . . . . . Total Damage . | . . . . . . Kills . | . . . . . . Allies Corrupted . | . . . . . . Allies Melted . | . . . . . . Intel | -11 -10 -10 -9 -9 -9 ------- Run | Scr Mat Min Mat Min Exi Robot Analysis Total 3 | . 2 . 1 . . Derelict Logs Recovered 2 | . . 1 . 1 . Drone Launches . | . . . . . . Drone Recoveries . | . . . . . . Exploration | -11 -10 -10 -9 -9 -9 ------------- Run | Scr Mat Min Mat Min Exi Turns Passed 10364 | 35 1442 1457 3286 1651 2493 Spaces Moved 4577 | 16 722 693 1348 701 1097 Core 13 | . . 11 . . 2 Treads 4426 | . 697 682 1348 701 998 Legs 138 | 16 25 . . . 97 Wheels . | . . . . . . Hover . | . . . . . . Flight . | . . . . . . Fastest Speed 120 | 120 120 180 180 220 120 Average Speed 198 | 120 172 194 205 220 195 Slowest Speed 1100 | 120 180 1100 220 220 950 Overloaded Moves . | . . . . . . Propulsion Burnouts . | . . . . . . Robots Hopped . | . . . . . . Cave-ins Triggered 1 | . . . . 1 . Exploration Rate (%) 74 | 3 99 99 77 97 71 Regions Visited 5 Branch Regions 3 Pre-discovered Areas 3 | . . 1 1 . 1 Known Exits Taken 2 | . 1 . 1 . . Unknown Exits Taken 3 | 1 . 1 . 1 . Scrap Searched 3 | . . 1 . 2 . Spaces Dug 39 | . . . 10 29 . Terrain Destroyed 158 | . 8 46 19 66 19 Melee . | . . . . . . Projectile 3 | . . . . . 3 AOE 155 | . 8 46 19 66 16 Terrain Rammed . | . . . . . . Walls Destroyed . | . . . . . . Machines Disabled . | . . . . . . Actions | -11 -10 -10 -9 -9 -9 --------- Run | Scr Mat Min Mat Min Exi Total 5473 | 21 864 767 1705 764 1352 Wait 279 | . 34 2 175 21 47 Move 4571 | 15 721 692 1347 699 1097 Hop . | . . . . . . Pick Up 103 | . 28 7 28 4 36 Fast Attach 31 | 1 5 12 3 2 8 Attach 30 | . . 2 4 1 23 Detach 8 | . . . 1 . 7 Swap 53 | . 14 11 22 6 . Drop 126 | . 25 19 27 5 50 Fire 264 | 5 37 22 98 25 77 Melee 4 | . . . . . 4 Ram . | . . . . . . Kick . | . . . . . . Crush . | . . . . . . Escape Stasis 1 | . . . . 1 . Rewire . | . . . . . . Trap 3 | . . . . . 3 Miscellaneous . | . . . . . . Route ------- -11/Scrapyard -10/Materials (discovered 4 exits: *Mat x3 / *Min) -10/Mines (discovered 2 exits: *Mat x2) -9/Materials (discovered 3 exits: [*Mat x2] / *Min) -9/Mines (discovered 4 exits: [*Mat x2] / *Exi / [*Zio]) -9/Exiles (discovered 1 exit: [*Min]) History --------- Turn | Location | Event 1 | -11/Scrapyard | Discovered new exit (range 3) 36 | -11/Scrapyard | Entered Materials 308 | -10/Materials | Build established: Mutant 402 | -10/Materials | Discovered new exit (range 8) 463 | -10/Materials | Central database locked down 496 | -10/Materials | Discovered new exit (range 16) 496 | -10/Materials | Identified exit to Mines 829 | -10/Materials | Discovered new exit (range 11) 881 | -10/Materials | Repaired Grenade Launcher 1159 | -10/Materials | Build established: Hauler-Mutant 1243 | -10/Materials | Discovered new exit (range 8) 1478 | -10/Materials | Entered Mines 1540 | -10/Mines | Met a Derelict bent on vengeance 1660 | -10/Mines | Discovered new exit (range 7) 1824 | -10/Mines | Discovered new exit (range 6) 1826 | -10/Mines | Learned location of Storage (-7) 1879 | -10/Mines | Joined a pair of Derelicts in attacking an 0b10 outpost 2234 | -10/Mines | Assembled infested the area 2255 | -10/Mines | Core integrity fell below 50% 2280 | -10/Mines | Destroyed 18 combat bots 2441 | -10/Mines | Found a hidden stash of uninstalled traps 2620 | -10/Mines | Core integrity fell below 20% 2658 | -10/Mines | Lost 4 parts (1p2n1w) 2935 | -10/Mines | Entered Materials 2935 | -9/Materials | Evolved 2 slots: Utility x2 2992 | -9/Materials | Identified exit to Mines 3525 | -9/Materials | Discovered new exit (range 9) 4257 | -9/Materials | Repaired Imp. Ion Engine 4572 | -9/Materials | Discovered new exit (range 16) 4660 | -9/Materials | Repaired Lgt. Treads 6221 | -9/Materials | Entered Mines 6251 | -9/Mines | Discovered new exit (range 12) 6338 | -9/Mines | Learned 2 Materials zone layouts 6379 | -9/Mines | A Derelict revealed a hidden shortcut to a safe place 6458 | -9/Mines | A weapon hastily lodged in a ceiling crevice suddenly fell to the ground 6664 | -9/Mines | Discovered new exit (range 13) 6803 | -9/Mines | Excavation squad dispatched 6803 | -9/Mines | A large section of the Mines collapsed 7015 | -9/Mines | Crushed by falling debris 7393 | -9/Mines | Deemed a non-threat by the Exiles lab entrance 7396 | -9/Mines | Discovered new exit (range 5) 7872 | -9/Mines | Entered Exiles 7925 | -9/Exiles | Met 8R-AWN 7965 | -9/Exiles | Met EX-HEX 8138 | -9/Exiles | Met EX-DEC 8172 | -9/Exiles | Learned location of Zion (-7) 8242 | -9/Exiles | Discovered new exit (range 10) 8658 | -9/Exiles | Met EX-BIN 8680 | -9/Exiles | Aligned with FarCom system 8682 | -9/Exiles | Given EX-Vault access code 8732 | -9/Exiles | Opened EX-Vault 8744 | -9/Exiles | Found PSU Rigger 8753 | -9/Exiles | Found AWS/Gauss 8800 | -9/Exiles | Warned to stay clear of 0b10 Research branches 9372 | -9/Exiles | Found Potential Leg 9375 | -9/Exiles | Found Potential Leg 9889 | -9/Exiles | Attacked by the Exiles 10023 | -9/Exiles | Core integrity fell below 50% 10112 | -9/Exiles | Lost 6 parts (3n3w) 10161 | -9/Exiles | Core integrity fell below 20% 10179 | -9/Exiles | Destroyed 8R-AWN 10179 | -9/Exiles | Found AS-neutralizer No. 17b 10199 | -9/Exiles | Build established: Mutant 10204 | -9/Exiles | Lost 6 parts (1p1n2u2w) 10213 | -9/Exiles | Found Exp. Targeting Computer 10215 | -9/Exiles | Found 8R-AWN's Boregun 10218 | -9/Exiles | Found 8R-AWN's Boregun 10238 | -9/Exiles | Found 8R-AWN's Armor/EX 10365 | -9/Exiles | Destroyed by DAS Turret with DAS Cannon Last Messages --------------- 10224_ Acquired Plasma Cutter. 10229_ Dropped Lgt. Armor Plating. 10232_ Acquired Lgt. Armor Plating. 10234_ Acquired Gravity Neutralizing Apparatus. 10238_ Acquired 8R-AWN's Armor/EX. 10248_ Extracted 147 matter. 10278_ Extracted 6 energy. 10281_ Dropped Gravity Neutralizing Apparatus. 10282_ Dropped Exp. Targeting Computer. 10283_ Dropped Exp. Heat Sink. 10283_ Dropped 8R-AWN's Armor/EX. 10284_ Dropped AS-neutralizer No. 17b. 10338_ Machine disabled. 10339_ Cld. Ion Engine destroyed. 10343_ Lgt. Armor Plating destroyed. 10351_ Knocked back. 10352_ 4< HT6REDRVQUCD ECDOJUV3HXXD 10353_ Slug penetrates DAS Turret. 10359_ Knocked back. 10365_ Slug penetrates DAS Turret. Map ----- +----------------------------------------------------+ | ???????????????????????????????????????????## | | ???????????#######?????????????????????????#" | | #####??????#!!! "#?????????????????????????#" | | #""##?????# "#?????????????????????????#" | | #?????# "#?????????????????????????#" | | ##???## ""#?????????????#???????????#" | | #####" ""#???????????? """????????#" | | ##" ""#????????????" """#???????## | | #" ##?????????????" ?????????# | | # ####?????????"" ?????????#" | | #### ## ##????????"" "#????????#" | | ???### ## ##??????? ""?????????#" | | #####" #????????" "?????????##" | | !""""" # ###??????# #????????##"" | | !"### # ;;####?### ###?######"" | | ## ;;###X# #"###""""""" | | ! #### """""" " "" | | """" ""#??# " % "" """ " | | ######" ###### % " | | ?????# ##????### | | ?????# #???????### | | ?????# #?????????## | | ?????# ##??????????## | | ????? #????????????##" | | ?????## #?????????????#" """""" | | ??????? #????????????## @ ######""" | | ??????? #????????????#"" ""##????#### | | ??????? #???????????##"" """##????????? | | ??????? #???????????#"" """##?????????? | | ??????? ????????????#""" ""#??????????? | | ??????? ????????????#"" ########??### | | ??????? ????????????#""" ## ####"" | | ????????????????????#"" """" | | ????????????????????##"" t | | ?????????????????????#"""" | | ?????????????????????## | | ??????????????????????#" " | | ??????????????????????#""" ""## ## | | ??????????????????????#"" ""#### ## | | ??????????????????????#" """"##??# #? | | ??????????????????????#""" """#??## ## | | ??????????????????????## ""##??#! " | | ???????????????????????#"" """##???#" | | ???????????????????????##""" ##????#" | | ????????????????????????##"""" ##?????#! "" | | ??????????????????????????## #??????###### | | ????????????????????????????#### ##???????????? | | ???????????????????????????????## #????????????? | | ????????????????????????????????# #????????????? | | ????????????????????????????????? ?????????????? | +----------------------------------------------------+ Best States ------------- Heat Dissipation 28 Energy Generation 19 Energy Capacity 580 Matter Stores 447 Matter Capacity 500 Sight Range 16 Terrain Scan Range 16 Terrain Scan Density 10 Armor Coverage 300 Core Shielding 20 Evasion (%) 40 Recoil Reduction 2 Salvage Targeting 1 Item Schematics ----------------- Hcp. Storage Unit | -10/Materials | Hacked Hacking Suite | -9/Materials | Scanalyzed Lrg. Storage Unit | -9/Materials | Scanalyzed Imp. Sensor Array | -9/Materials | Scanalyzed Robot Schematics ------------------ None Fabricated ------------ Nothing Alien Tech Used ----------------- None Achievements -------------- None Challenges ------------ None Game ------ Seed BottomlessShadeSource Manual? 0 Play Time 01:06:11 Cumulative 106.8 hours Start 2020.12.09 @ 14:33:46 End 2020.12.09 @ 15:40:21 Sessions 1 Manual Loads 0 Difficulty Rogue Special Mode None Game No. 97 Rogue 97 Adventurer 0 Explorer 0 Win Type - Total 0 Types 0/0/0/0/0/0/0/0/0 Lore% 48 Gallery% 57 Achievement% 52 Wizard Run 0 Options --------- ASCII 0 Keyboard 1 Movement Numpad Keybinds 0 Fullscreen 1 Font 12/Terminus Map View 83x54 Tactical HUD 1 Map Filters NONE Filters NONE Steam 1 RUN: 184855eb-30a4-4599-9504-975032c88348